[Event "1000IM Saint Louis 2022"]
[Site "Saint Louis"]
[Date "2022.07.19"]
[Round "2.1"]
[White "Cervantes Landeiro, Thalia"]
[Black "Altman, Joshua"]
[Result "1-0"]
[ECO "E16"]
[WhiteElo "2234"]
[BlackElo "2162"]
[Annotator "TA"]
[PlyCount "133"]
[EventDate "2022.07.20"]
[EventType "tourn"]
[EventCountry "USA"]
[SourceTitle "playchess.com"]
[Source "ChessBase"]
[SourceQuality "1"]
[TimeControl "5400+30"]

{[%evp 15,133,18,37,16,42,41,58,49,69,60,63,75,78,77,161,72,71,71,65,43,55,53,64,39,62,52,64,48,60,63,65,66,66,46,69,44,38,39,41,28,60,33,37,33,64,28,42,-8,20,0,50,0,0,-84,-29,-298,-286,-395,-380,-368,-381,-718,-686,-606,-520,-544,-550,-534,-523,-628,-355,-416,-341,-351,-348,-348,-342,-356,0,0,0,-99,292,259,262,262,352,357,486,507,470,493,688,668,591,481,754,742,5373,5281,1489,2377,6205,5999,29974,29975,29971,29973,29973,11003,29978,29979,29966,29974,29986,29989,29989,29990,29996,29997]} 1. d4 {[%emt 0:00:03]} Nf6 {[%emt 0:00:03]} 2. c4 {[%emt 0:00:08]} e6 {[%emt 0:00:03]} 3. Nf3 {[%emt 0:00:08]} b6 {[%emt 0:00:03]} 4. g3 {[%emt 0:00:10]} Bb7 {[%emt 0:00:04]} 5. Bg2 {[%emt 0:00:11]} Bb4+ {[%emt 0:00:04]} 6. Bd2 {[%emt 0:00:21]} Bxd2+ {[%emt 0:00:04]} 7. Qxd2 {[%emt 0:00:08]} O-O {[%emt 0:00:04]} 8. O-O {[%emt 0:00:32]} d6 {[%emt 0:00:03]} 9. Qf4 {[%emt 0:00:58] E16: Queen's Indian: 4 g3 Bb7 5 Bg2 Bb4+.} Nbd7 {[%emt 0:00:42][%cal Oe6e5]} 10. Nc3 {[%emt 0:01:08]} Qe7 {[%emt 0:05:33]} 11. e4 {[%emt 0:01:14] [#] White is slightly better.} Rfd8 $146 {[%emt 0:10:07]} ({Predecessor:} 11... e5 12. Qe3 Rfe8 13. Rfe1 c6 14. Rad1 Rad8 15. Rd2 c5 16. dxe5 Nxe5 17. Nxe5 dxe5 {½-½ (35) Bluebaum,M (2647)-Bartel,M (2643) Warsaw 2020}) 12. Rfe1 {[%emt 0:06:28]} a5 {[%emt 0:06:24]} 13. Rad1 {[%emt 0:04:58]} h6 {[%emt 0:05:31]} 14. b3 {[%emt 0:20:05]} Re8 {[%emt 0:13:10]} (14... Rab8 $16 {keeps fighting.}) 15. Qd2 {[%emt 0:15:50]} (15. e5 $18 {is more deadly.}) 15... Rad8 $16 {[%emt 0:16:57]} 16. Qc2 {[%emt 0:00:56]} e5 {[%emt 0:06:03]} 17. d5 {[%emt 0:03:15]} Nf8 {[%emt 0:06:41]} 18. Nh4 {[%emt 0:02:20]} g6 {[%emt 0:04:10]} 19. a3 {[%emt 0:03:29]} c6 {[%emt 0:04:11]} 20. Qd2 {[%emt 0:04:46]} Kg7 {[%emt 0:02:07]} 21. Rc1 {[%emt 0:01:58]} N6d7 {[%emt 0:06:26][%cal Bf6d7,Bd7c5,Bc5b3][%mdl 32]} 22. dxc6 {[%emt 0:06:09]} Bxc6 {[%emt 0:00:01]} 23. Nd5 {[%emt 0:00:33] 0x0.0002dee44a13dp-1022s more active pieces.} Bxd5 {[%emt 0:03:51]} 24. cxd5 {[%emt 0:00:21]} (24. Qxd5 Nc5 $11) (24. exd5 f5 $11) 24... Nc5 {[%emt 0:02:06]} 25. Rc3 {[%emt 0:01:31]} a4 {[%emt 0:02:00]} 26. b4 {[%emt 0:01:18]} Nb3 {[%emt 0:00:10]} 27. Qe3 {[%emt 0:01:33]} Qb7 {[%emt 0:03:09]} 28. Bf1 {[%emt 0:05:17]} (28. Bh3 $5 {[%cal Rh4f3]}) 28... b5 {[%emt 0:01:27]} 29. Qd3 {[%emt 0:02:41]} Rb8 {[%emt 0:01:13]} 30. Nf3 {[%emt 0:02:59]} (30. f4 {feels hotter.} Rec8 31. fxe5 dxe5 32. Bh3) 30... Rec8 {[%emt 0:01:46]} 31. Bh3 {[%emt 0:01:21]} (31. Rxc8 $14 Qxc8 32. Nd2) 31... Rc7 {[%emt 0:01:03]} 32. Re3 {[%emt 0:00:51]} Nd7 {[%emt 0:00:39]} ({Black should play} 32... Rxc3 $11 33. Qxc3 Nh7) 33. Qc2 {[%emt 0:04:04]} (33. Bxd7 $14 Rxd7 34. Rc6) 33... Rbc8 $1 $11 {[%emt 0:00:25]} 34. Kg2 {[%emt 0:04:42]} (34. Rxc7 $11 {remains equal.} Rxc7 35. Rc3 Rxc3 36. Qxc3) 34... Rc4 $17 {[%emt 0:00:30][%cal Of7f5]} 35. Rxc4 $4 {[%emt 0:01:10][%mdl 8192]} (35. Qb2 $1 $11) 35... Rxc4 $19 {[%emt 0:00:04]} 36. Rc3 {[%emt 0:00:12]} Nb6 {[%emt 0:00:55][%cal Bd7b6,Bb6c4,Bc4a3][%mdl 32]} 37. Rxc4 {[%emt 0:02:48]} Nxc4 {[%emt 0:00:01]} 38. Kg1 $2 {[%emt 0:00:05]} (38. Qa2 f5 39. Qe2 (39. exf5 $2 Qxd5 40. Bg4 Nd4 $19)) 38... Nxa3 {[%emt 0:00:47] Pair of Knights!} 39. Qc6 {[%emt 0:00:33]} Qe7 {[%emt 0:00:35]} 40. Bf1 {[%emt 0:00:53]} Nd4 {[%emt 0:00:44]} 41. Nxd4 {[%emt 0:00:38]} exd4 {[%emt 0:00:02][%mdl 4096] Endgame KQB-KQN} 42. f3 {[%emt 0:01:36]} Qe5 {[%emt 0:00:36][%cal Od4d3]} 43. Bd3 {[%emt 0:00:29]} g5 {[%emt 0:00:37]} 44. Kf2 {[%emt 0:01:00]} Nc4 {[%emt 0:00:38]} 45. Qxb5 {[%emt 0:00:26]} Nb2 {[%emt 0:00:16] [#] Strongly threatening ...a3.} 46. Qa6 {[%emt 0:00:40]} Nd1+ $2 {[%emt 0:00:29]} ({Better is} 46... h5 $19 {Threatens to win with ...h4.} 47. Kf1 h4) 47. Ke1 $1 $11 {[%emt 0:00:03]} Nb2 {[%emt 0:00:29][%cal Og5g4] Hoping for ...g4!} 48. Kd2 {[%emt 0:00:45] [#]} (48. Kf2 $11 {was the only way to keep the balance.}) 48... Qf6 $2 {[%emt 0:00:49][%mdl 8192] White stays focused until the end.} (48... g4 $1 $17 {[%cal Rg4f3] keeps the pressure on.} 49. Kc2 (49. fxg4 $2 Qg5+ 50. Kc2 Nxd3 $19) 49... Nxd3 50. Qxd3 f5) 49. Kc2 $18 {[%emt 0:00:32]} Nxd3 {[%emt 0:00:27]} 50. Qxd3 {[%emt 0:00:02] KQ-KQ} g4 {[%emt 0:00:38]} 51. f4 {[%emt 0:00:07]} (51. fxg4 Qf2+ 52. Kb1 Qe3 $19) 51... Kg8 {[%emt 0:00:30]} 52. Kb2 {[%emt 0:00:17]} ({Not} 52. b5 Qd8 $16) 52... h5 {[%emt 0:00:28]} 53. Ka3 {[%emt 0:00:10]} Qe7 {[%emt 0:00:20][%cal Of7f5]} 54. Qxd4 {[%emt 0:00:31]} Qc7 {[%emt 0:00:42]} 55. Qd3 {[%emt 0:01:30] Inhibits Qc2.} Qa7 {[%emt 0:00:29]} (55... f6 $142 56. Kxa4 Qa7+ 57. Kb3 Kg7) 56. e5 {[%emt 0:00:13]} dxe5 {[%emt 0:00:21]} 57. fxe5 {[%emt 0:00:05]} Qg1 {[%emt 0:00:23]} 58. Kxa4 {[%emt 0:00:27] Black must now prevent d6.} Qa1+ {[%emt 0:00:08]} 59. Kb3 {[%emt 0:00:21] Intending d6 and mate.} Qxe5 {[%emt 0:00:04]} 60. d6 {[%emt 0:00:26][%cal Bd5d6,Bd6d7][%mdl 32]} Qe6+ {[%emt 0:00:03]} 61. Ka3 {[%emt 0:00:48]} Qd7 {[%emt 0:00:24]} 62. b5 {[%emt 0:00:16][%cal Bb4b5,Bb5b6][%mdl 32] White threatens b6 and mate.} Kf8 {[%emt 0:00:24]} 63. Qd4 {[%emt 0:00:34][%cal Rd4h8] White mates.} Kg8 {[%emt 0:00:27]} 64. b6 {[%emt 0:00:32]} Qc6 {[%emt 0:00:16]} 65. d7 {[%emt 0:00:33]} Qc1+ {[%emt 0:00:04]} 66. Ka4 {[%emt 0:00:31]} Qa1+ {[%emt 0:00:07]} 67. Qxa1 {[%emt 0:00:28] Weighted Error Value: White=0.38/Black=0.65} 1-0

[Event "1000IM Saint Louis 2022"]
[Site "Saint Louis"]
[Date "2022.07.19"]
[Round "2.2"]
[White "Nyzhnyk, Illya"]
[Black "Stefanov, Emil"]
[Result "1-0"]
[ECO "E04"]
[WhiteElo "2686"]
[BlackElo "2342"]
[Annotator "TA"]
[PlyCount "57"]
[EventDate "2022.07.20"]
[EventType "tourn"]
[EventCountry "USA"]
[SourceTitle "playchess.com"]
[Source "ChessBase"]
[SourceQuality "1"]
[TimeControl "5400+30"]

{[%evp 18,57,7,0,13,0,6,0,42,32,29,41,117,115,271,256,280,279,266,264,258,270,261,265,258,262,270,260,254,254,288,292,951,962,909,887,5322,0,576,575,572,553]} 1. Nf3 {[%emt 0:00:08]} d5 {[%emt 0:00:30]} 2. d4 {[%emt 0:00:26]} Nf6 {[%emt 0:00:08]} 3. c4 {[%emt 0:00:08]} e6 {[%emt 0:00:07]} 4. g3 {[%emt 0:00:06]} dxc4 {[%emt 0:00:10]} 5. Bg2 {[%emt 0:00:11]} a6 {[%emt 0:00:10]} 6. O-O {[%emt 0:04:51]} Nc6 {[%emt 0:00:15]} 7. Nc3 {[%emt 0:02:48]} Rb8 {[%emt 0:05:05]} 8. e4 {[%emt 0:00:03]} Be7 {[%emt 0:00:17]} 9. d5 exd5 {[%emt 0:00:05]} 10. exd5 {[%emt 0:01:15]} Nb4 {[%emt 0:00:13][%cal Rf6d5] E04: Open Catalan: 5 Nf3.} 11. Ne5 {[%emt 0:00:05]} Bf5 {[%emt 0:06:50]} 12. Nxc4 $1 {[%emt 0:14:29][%mdl 4] is more profitable than 12.a3 at the moment.} Bd3 {[%emt 0:06:33] [#] The position is equal.} 13. b3 {[%emt 0:00:03] Strongly threatening a3.} Bxf1 {[%emt 0:06:09]} 14. Kxf1 {[%emt 0:00:02] [#]} b5 $146 {[%emt 0:22:23]} (14... a5 $1 $14) ({Predecessor:} 14... a5 15. a3 Na6 16. Be3 O-O 17. Nxa5 c6 18. b4 cxd5 19. Nxd5 Nxd5 20. Qxd5 Qxd5 21. Bxd5 {1-0 (66) Dubov,D (2702)-Oganian,M (2437) Chess.com INT 2022}) 15. Na5 $1 $16 {[%emt 0:12:49]} c5 $2 {[%emt 0:13:54]} (15... c6 $16) 16. Bf4 $1 $18 {[%emt 0:01:33]} Qxa5 {[%emt 0:07:32]} 17. Bxb8 {[%emt 0:00:04] d6 is the strong threat. A strong pair of Bishops.} O-O {[%emt 0:00:09]} 18. d6 {[%emt 0:00:04] Black must now prevent Bc7.} Bd8 {[%emt 0:03:02] [#] Against Bc7} 19. Ba7 {[%emt 0:17:02] Prevents Qb6. Hoping for a4.} Bb6 {[%emt 0:11:01]} 20. Bxb6 {[%emt 0:00:05]} Qxb6 {[%emt 0:00:05]} 21. a3 {[%emt 0:00:04]} Nc6 {[%emt 0:00:05]} 22. Nd5 {[%emt 0:00:03]} Nxd5 {[%emt 0:00:06]} 23. Qxd5 {[%emt 0:00:02]} ({And not} 23. Bxd5 Nd4 24. Qd3 (24. d7 Qd6 $17) 24... Qxd6 $17) 23... Nd4 {[%emt 0:01:16]} 24. Re1 {[%emt 0:00:53]} Rd8 $2 {[%emt 0:01:31]} (24... Nxb3 25. Qxb3 Qxd6) 25. Re7 {[%emt 0:00:16]} Ne6 {[%emt 0:00:24]} 26. Bh3 {[%emt 0:00:03]} Rxd6 {[%emt 0:10:51]} 27. Re8+ {[%emt 0:00:05]} (27. Qf3 $142 f5 28. Bxf5) 27... Nf8 {[%emt 0:00:03] [#]} 28. Qa8 {[%emt 0:00:05][%csl Ga8][%cal Re8f8]} Rd1+ {[%emt 0:00:04]} 29. Ke2 {[%emt 0:00:05] Black did not feel at home in the position after the opening.  Weighted Error Value: White=0.33/Black=0.37} 1-0

[Event "1000IM Saint Louis 2022"]
[Site "Saint Louis"]
[Date "2022.07.19"]
[Round "2.3"]
[White "Wang, Tianqi"]
[Black "Proleiko, Julian"]
[Result "1/2-1/2"]
[ECO "A45"]
[WhiteElo "2402"]
[BlackElo "2238"]
[Annotator "TA"]
[PlyCount "21"]
[EventDate "2022.07.20"]
[EventType "tourn"]
[EventCountry "USA"]
[SourceTitle "playchess.com"]
[Source "ChessBase"]
[SourceQuality "1"]
[TimeControl "5400+30"]

{[%evp 9,21,0,0,0,0,0,0,0,0,0,0,0,0,0]} 1. d4 {[%emt 0:00:08]} Nf6 {[%emt 0:00:04]} 2. f3 {[%emt 0:00:10][%cal Bf2f3,Bf3e4][%mdl 32]} d5 {[%emt 0:00:03]} 3. e4 {[%emt 0:00:17]} e5 {[%emt 0:00:03]} 4. dxe5 {[%emt 0:00:20]} Nxe4 {[%emt 0:00:05] [#]} 5. fxe4 $146 {[%emt 0:00:21]} ({Predecessor:} 5. Ne2 Nc5 6. Nbc3 Nc6 7. Be3 Nxe5 8. Qxd5 Qxd5 9. Nxd5 Ne6 10. Nd4 Nxd4 11. Bxd4 {0-1 (60) Andreikin,D (2727)-Khanin,S (2529) Chess.com INT 2019}) 5... Qh4+ {[%emt 0:00:03] The position is equal.} 6. Kd2 {[%emt 0:00:16] A45: Trompowsky Attack.} Qh6+ {[%emt 0:00:06]} (6... Qxe4 $2 7. Nf3 $18) 7. Kc3 {[%emt 0:00:21]} Qc6+ {[%emt 0:00:04]} 8. Kd2 {[%emt 0:00:08] [#] Hoping for Nc3.} Qh6+ $1 {[%emt 0:00:04]} 9. Ke1 {[%emt 0:00:06]} Qh4+ {[%emt 0:00:05]} 10. Kd2 {[%emt 0:00:13]} Qh6+ {[%emt 0:00:05]} (10... Qxe4 $2 11. Nf3 $18) 11. Kc3 {[%emt 0:00:08] An even fight not without its subleties.  Weighted Error Value: White=0.00 (flawless) /Black=0.00 (flawless)} 1/2-1/2

[Event "1000IM Saint Louis 2022"]
[Site "Saint Louis"]
[Date "2022.07.19"]
[Round "2.4"]
[White "Kozelov, Roman"]
[Black "Williams, Justus"]
[Result "0-1"]
[ECO "B40"]
[WhiteElo "2104"]
[BlackElo "2390"]
[Annotator "TA"]
[PlyCount "104"]
[EventDate "2022.07.20"]
[EventType "tourn"]
[EventCountry "USA"]
[SourceTitle "playchess.com"]
[Source "ChessBase"]
[SourceQuality "1"]
[TimeControl "5400+30"]

{[%evp 9,104,10,14,6,28,17,37,23,23,-2,-7,0,0,-28,-22,-117,-100,-122,-134,-127,-116,-120,-82,-87,-98,-87,-95,-82,-87,-81,-75,-128,-123,-134,-117,-129,-139,-146,-134,-131,-127,-150,-126,-180,-155,-150,-127,-125,-123,-129,-117,-117,-129,-124,-124,-118,-102,-101,-70,-77,-52,-63,-58,-46,-44,-47,-16,-22,-5,-11,0,0,0,0,0,0,0,0,0,0,0,0,0,-19,-20,-73,-73,-75,-75,-12834,-827,-12845,-12845,-12845,-12846,-12846,-12847]} 1. e4 {[%emt 0:04:38]} c5 {[%emt 0:00:13]} 2. Nf3 {[%emt 0:00:09]} e6 {[%emt 0:00:48]} 3. g3 {[%emt 0:00:07]} Nc6 {[%emt 0:00:24]} 4. Bg2 {[%emt 0:00:05]} Nf6 {[%emt 0:00:30]} 5. Nc3 {[%emt 0:00:03]} d5 {[%emt 0:01:47]} 6. exd5 {[%emt 0:00:14] B40: Sicilian: 2...e6, Unusual lines.} Nxd5 {[%emt 0:00:25]} 7. O-O {[%emt 0:00:22]} Nc7 {[%emt 0:01:16]} 8. Re1 {[%emt 0:04:42] White is slightly better.} Be7 {[%emt 0:00:47] [#]} 9. b3 $146 {[%emt 0:00:53]} ({Predecessor:} 9. d3 O-O 10. Bf4 f6 11. Nh4 e5 12. Bd2 g5 13. Be4 f5 14. Bxc6 bxc6 15. Nf3 {1-0 (35) Gorkavij,V (2327)-Tunik,G (2499) Belorechensk 2009}) 9... O-O {[%emt 0:02:47]} 10. Bb2 {[%emt 0:01:08]} f6 {[%emt 0:01:06][%cal Bf7f6,Bf6f5][%mdl 32]} 11. Ba3 {[%emt 0:09:50][%cal Od2d4]} e5 {[%emt 0:02:21] Against d4} 12. Ne4 {[%emt 0:03:44]} (12. Nh4 $11) 12... f5 $1 $17 {[%emt 0:05:22]} 13. Nxe5 {[%emt 0:04:39]} fxe4 {[%emt 0:12:11]} ({Weaker is} 13... Nxe5 14. Nxc5 Bd6 15. Nxb7 Bxb7 16. Bxd6 Qxd6 17. Bxb7 $15) 14. Nxc6 {[%emt 0:00:29]} bxc6 {[%emt 0:00:04]} 15. Bxe4 {[%emt 0:02:20]} Nd5 {[%emt 0:06:37]} 16. c4 {[%emt 0:02:46]} Nf6 {[%emt 0:06:38]} 17. Bxc6 {[%emt 0:01:47]} Bg4 {[%emt 0:02:22][%cal Bc8g4,Bg4h5,Bh5g6][%mdl 32]} 18. Qc2 {[%emt 0:05:27]} Rc8 {[%emt 0:00:45]} 19. Bg2 {[%emt 0:00:14]} Qd7 {[%emt 0:00:28]} 20. d4 ({White should try} 20. d3) 20... Qxd4 {[%emt 0:02:45]} 21. h3 {[%emt 0:06:38] [#]} Bh5 {[%emt 0:00:37]} 22. g4 {[%emt 0:00:53]} (22. Qb2 Qd7) 22... Bg6 {[%emt 0:03:45]} 23. Qe2 {[%emt 0:00:48]} Rfe8 {[%emt 0:01:06] Hoping for ...Bd6.} 24. Bb2 {[%emt 0:06:00]} Qd8 {[%emt 0:03:21]} 25. Rad1 {[%emt 0:15:11]} Qa5 {[%emt 0:01:35]} 26. Qe6+ {[%emt 0:03:37]} (26. Be5 $17) 26... Bf7 {[%emt 0:03:27]} 27. Qf5 {[%emt 0:01:24][%cal Oe1e7] Strongly threatening Rxe7!} Qxa2 {[%emt 0:03:24]} 28. Rxe7 {[%emt 0:01:18]} Qxb2 {[%emt 0:04:03]} 29. Rxf7 {[%emt 0:00:48]} Kxf7 {[%emt 0:04:00]} 30. g5 {[%emt 0:01:16][%mdl 64] [#] Pin} Kg8 $1 {[%emt 0:01:55] White must now prevent ...Nh5.} 31. gxf6 {[%emt 0:01:55]} Qxf6 {[%emt 0:00:15]} 32. Qxf6 {[%emt 0:00:25]} gxf6 {[%emt 0:00:03][%mdl 4096] Endgame KRR-KRB} 33. Rd7 {[%emt 0:00:14] Inhibits Re7.} Re1+ {[%emt 0:02:10]} 34. Kh2 {[%emt 0:00:15]} Ra1 {[%emt 0:02:07]} 35. Rb7 {[%emt 0:02:46]} Re8 {[%emt 0:01:39]} 36. Bd5+ {[%emt 0:03:19]} Kh8 {[%emt 0:00:18]} 37. Kg2 {[%emt 0:04:13]} Re5 {[%emt 0:01:55]} 38. Kg3 {[%emt 0:00:55]} Ra2 {[%emt 0:06:10]} 39. f3 {[%emt 0:01:09]} Ra1 {[%emt 0:03:27]} 40. Kf4 {[%emt 0:00:16]} Rh1 {[%emt 0:05:14]} 41. Rxa7 {[%emt 0:01:01]} Rxh3 {[%emt 0:00:12]} 42. Rc7 {[%emt 0:00:34]} Rh4+ {[%emt 0:02:45]} 43. Kg3 {[%emt 0:00:05]} Rd4 {[%emt 0:00:09]} 44. Rxc5 {[%emt 0:01:44]} h5 {[%emt 0:01:54]} 45. Rc8+ {[%emt 0:03:32]} Kg7 {[%emt 0:00:14]} 46. Rc7+ {[%emt 0:00:35]} Kg6 {[%emt 0:02:49] Threatens to win with ...h4+.} 47. Be4+ {[%emt 0:03:38]} (47. Rd7 $1 $11 {remains equal.}) 47... f5 {[%emt 0:01:20][%cal Bf6f5,Bf5e4][%mdl 32]} 48. Rc6+ {[%emt 0:01:01] [#]} Kf7 $1 {[%emt 0:00:25]} 49. Kf4 {[%emt 0:01:03][%mdl 8192] White does not recover from this.} (49. Bd5+ $17 Ke7 50. Rc7+ Kf6 51. Rf7+ Kg6 52. Rd7 h4+ 53. Kh3) 49... Re6 $19 {[%emt 0:00:27] Black is clearly winning.} ({Not} 49... Ra5 50. b4 Ra4 51. Kxf5 (51. Ke5 fxe4 52. Rc7+ Kg6 $11) 51... Rxb4 52. Rc7+ Ke8 53. Bd5 $11) 50. Rxe6 {[%emt 0:01:53]} Kxe6 {[%emt 0:00:03]} 51. Ke3 {[%emt 0:00:06] [#]} fxe4 $1 {[%emt 0:00:40]} 52. Kxd4 {[%emt 0:00:58] [#]} h4 $1 {[%emt 0:02:13] Weighted Error Value: White=0.46/Black=0.06 (flawless)} (52... exf3 53. Ke3 Kd6 54. b4 $18) 0-1

[Event "1000IM Saint Louis 2022"]
[Site "Saint Louis"]
[Date "2022.07.19"]
[Round "2.5"]
[White "Tokhirjonova, Gulrukhbegim"]
[Black "Sethuraman, Sandeep"]
[Result "1/2-1/2"]
[ECO "A07"]
[WhiteElo "2329"]
[BlackElo "2305"]
[Annotator "TA"]
[PlyCount "50"]
[EventDate "2022.07.20"]
[EventType "tourn"]
[EventCountry "USA"]
[SourceTitle "playchess.com"]
[Source "ChessBase"]
[SourceQuality "1"]
[TimeControl "5400+30"]

{[%evp 9,50,9,7,0,4,10,0,0,20,12,13,14,14,17,17,6,16,5,33,7,7,0,0,-5,14,8,14,16,11,0,0,0,0,0,3,3,10,3,4,0,4,0,0]} 1. Nf3 {[%emt 0:02:57]} d5 {[%emt 0:00:06]} 2. g3 {[%emt 0:01:22]} c6 {[%emt 0:00:11]} 3. Bg2 {[%emt 0:00:44]} Bg4 {[%emt 0:00:09]} 4. O-O {[%emt 0:01:09]} Nd7 {[%emt 0:00:13]} 5. h3 {[%emt 0:01:18]} Bxf3 {[%emt 0:03:37]} 6. Bxf3 {[%emt 0:00:19] A07: Réti Opening: New York and Capablanca Systems.} e5 {[%emt 0:02:08]} 7. d3 {[%emt 0:00:18]} Ngf6 {[%emt 0:00:39]} 8. e4 {[%emt 0:01:26]} dxe4 {[%emt 0:00:39]} 9. dxe4 {[%emt 0:00:17]} Bc5 {[%emt 0:01:07]} 10. a4 {[%emt 0:02:45]} a5 {[%emt 0:03:05]} 11. Qe2 {[%emt 0:02:19]} O-O {[%emt 0:04:27]} 12. Nd2 {[%emt 0:00:35][%cal Bb1d2,Bd2c4,Bc4e3,Be3f5][%mdl 32]} Qc7 {[%emt 0:09:16]} 13. Nc4 {[%emt 0:03:50]} Rfd8 {[%emt 0:03:23] [#]} 14. Ne3 $146 {[%emt 0:03:24]} ({Predecessor:} 14. Bg2 Nb6 15. Ne3 g6 16. Kh2 h5 17. Nd1 Nbd7 18. Bg5 Re8 19. Ne3 Nh7 20. Bh6 {½-½ (50) Fressinet,L (2700)-Wang,Y (2718) Huaian 2016}) 14... Nf8 {[%emt 0:07:12] The position is equal.} 15. Nf5 {[%emt 0:01:39]} Ne6 {[%emt 0:01:19]} 16. c3 {[%emt 0:00:15]} g6 {[%emt 0:08:30]} 17. Nh6+ {[%emt 0:04:25]} Kg7 {[%emt 0:04:33]} 18. h4 {[%emt 0:04:52]} Qd6 {[%emt 0:07:08]} 19. Ng4 {[%emt 0:13:14]} Nxg4 {[%emt 0:04:40]} 20. Bxg4 {[%emt 0:04:44]} h5 {[%emt 0:00:19]} 21. Bf3 {[%emt 0:03:28]} Qd3 {[%emt 0:03:29]} 22. Kg2 {[%emt 0:00:44]} Be7 {[%emt 0:05:57]} 23. Be3 {[%emt 0:05:55]} Bc5 {[%emt 0:03:15] [#] White must now prevent ...Qxe2.} 24. Bc1 {[%emt 0:01:35]} Be7 {[%emt 0:04:58]} 25. Be3 {[%emt 0:03:31]} Bc5 {[%emt 0:01:05] A balanced but interesting game.  Weighted Error Value: White=0.04 (flawless) /Black=0.04 (flawless)} 1/2-1/2

[Event "1000IM Saint Louis 2022"]
[Site "Saint Louis"]
[Date "2022.07.20"]
[Round "3.1"]
[White "Sethuraman, Sandeep"]
[Black "Cervantes Landeiro, Thalia"]
[Result "1-0"]
[ECO "D72"]
[WhiteElo "2305"]
[BlackElo "2234"]
[Annotator "TA"]
[PlyCount "45"]
[EventDate "2022.07.20"]
[EventType "tourn"]
[EventCountry "USA"]
[SourceTitle "playchess.com"]
[Source "ChessBase"]
[SourceQuality "1"]
[TimeControl "5400+30"]

{[%evp 15,45,43,56,50,62,12,66,66,62,56,55,59,57,53,62,37,202,191,498,518,781,775,803,755,753,750,749,736,1247,1220,1172,1142]} 1. d4 {[%emt 0:00:04]} Nf6 {[%emt 0:00:10]} 2. c4 {[%emt 0:00:05]} g6 {[%emt 0:00:24]} 3. g3 {[%emt 0:00:05]} Bg7 {[%emt 0:00:59]} 4. Bg2 {[%emt 0:00:07]} d5 {[%emt 0:00:33]} 5. cxd5 {[%emt 0:00:07]} Nxd5 {[%emt 0:00:05]} 6. e4 {[%emt 0:00:06]} Nb6 {[%emt 0:00:33]} 7. Ne2 {[%emt 0:00:07]} O-O {[%emt 0:02:28]} 8. O-O {[%emt 0:00:07]} Bg4 {[%emt 0:09:50]} 9. Nbc3 {[%emt 0:06:07] has lost popularity (9.f3). D72: Fianchetto Grünfeld: 5 cxd5 Nxd5 6 e4 Nb6 (without Nf3).} e5 {[%emt 0:05:25]} 10. d5 {[%emt 0:05:34] [#]} (10. dxe5 $14 Bxe5 11. f3) 10... Qc8 $146 {[%emt 0:03:54]} ({Black should play} 10... c6 $11) ({Predecessor:} 10... c6 11. h3 Bd7 12. Qb3 Na6 13. Be3 c5 14. a4 c4 15. Bxb6 cxb3 16. Bxd8 Rfxd8 {½-½ (24) Jaeger,A (2001)-Stoeckel,J (1899) Berlin-Lichtenrade 2012}) 11. b3 {[%emt 0:07:45] White is slightly better.} c6 {[%emt 0:10:21]} 12. Be3 {[%emt 0:08:36]} Rd8 {[%emt 0:09:16]} 13. Rc1 {[%emt 0:07:33][%cal Oc3b5]} Qd7 {[%emt 0:03:29]} 14. Qc2 {[%emt 0:09:39]} Na6 {[%emt 0:03:37][%cal Rc6d5]} 15. Rfd1 {[%emt 0:11:33]} Rac8 $2 {[%emt 0:07:11] A mistake that costs the game.} (15... cxd5 $14 16. Nxd5 Nxd5 17. exd5 (17. Rxd5 Qe7 $11) 17... h5) 16. f3 $18 {[%emt 0:04:11] [#] Threatens to win with dxc6.} Bh3 $2 {[%emt 0:09:55]} (16... Nb4 {is a better chance.} 17. Qd2 Bh3 18. Bxb6 axb6) 17. dxc6 {[%emt 0:00:46] White is clearly winning.} Qe6 {[%emt 0:00:17]} (17... Qxc6 $142 18. Bxh3 Ra8 19. Rxd8+ Rxd8) 18. cxb7 {[%emt 0:00:45]} Rb8 {[%emt 0:03:06]} 19. Rxd8+ {[%emt 0:03:23]} Rxd8 {[%emt 0:00:08]} 20. Bxh3 {[%emt 0:00:32]} Qxh3 {[%emt 0:00:20]} 21. Nd5 {[%emt 0:01:05]} Bh6 {[%emt 0:10:26]} 22. Bxb6 {[%emt 0:01:13]} axb6 {[%emt 0:02:06]} 23. Qc8 {[%emt 0:00:22] Weighted Error Value: White=0.09 (flawless) /Black=0.69} 1-0